[Event "Gibraltar Challengers B 2019"]
[Site "Caleta"]
[Date "2019.01.26"]
[Round "1"]
[White "Lim, Zhuo Ren"]
[Black "Weeramantry, Sunil"]
[Result "0-1"]
[ECO "E62"]
[WhiteElo "2178"]
[BlackElo "2007"]
[Annotator "NA"]
[PlyCount "138"]
[EventDate "2019.01.18"]
[EventType "swiss"]
[EventCountry "GGB"]
[SourceTitle "playchess.com"]
[Source "ChessBase"]
[SourceQuality "1"]
[TimeControl "6600+10"]

1. d4 {[%emt 0:00:11]} Nf6 {[%emt 0:00:00]} 2. Nf3 {[%emt 0:00:21]} g6 {[%emt 0:00:05]} 3. g3 {[%emt 0:00:21]} Bg7 {[%emt 0:00:07]} 4. Bg2 {[%emt 0:00:08]} d6 {[%emt 0:00:06]} 5. O-O {[%emt 0:00:12]} O-O {[%emt 0:00:05]} 6. c4 {[%emt 0:00:07]} Nc6 {[%emt 0:00:05] LiveBook: 5783 Games} 7. Nc3 {[%emt 0:00:12]} Bg4 {[%emt 0:00:08]} 8. d5 {[%emt 0:03:58]} Na5 {[%emt 0:00:06]} 9. Nd2 {[%emt 0:00:41]} c5 {[%emt 0:00:06]} 10. Qc2 {[%emt 0:01:58]} a6 {[%emt 0:00:05]} 11. h3 {[%emt 0:01:13] E62: King's Indian: Fianchetto: 6...c6 and Panno Variation (6...Nc6) without ...a6} Bd7 {[%emt 0:00:06]} 12. b3 {[%emt 0:00:18]} Rb8 {[%emt 0:00:04]} 13. Rb1 {[%emt 0:00:20]} b5 {[%emt 0:00:07]} 14. Re1 {[%emt 0:07:38] [#]} bxc4 $146 {[%emt 0:01:34]} ({Predecessor:} 14... e5 15. e3 Nh5 16. Ne2 f5 17. Bb2 {1-0 (30) Zoler,D (2503)-Kuzmin,A (2582) Biel 2002}) 15. bxc4 {[%emt 0:00:18]} Rxb1 {[%emt 0:00:32]} 16. Ncxb1 {[%emt 0:01:30]} Qc7 {[%emt 0:02:37]} 17. Bb2 {[%emt 0:08:03]} Rb8 {[%emt 0:00:23]} 18. Bc3 {[%emt 0:00:09]} Ne8 {[%emt 0:05:18]} 19. Bxg7 {[%emt 0:07:49]} Nxg7 {[%emt 0:00:12]} 20. Nc3 {[%emt 0:00:54]} Rb6 {[%emt 0:04:18]} 21. e4 {[%emt 0:03:51]} Qb8 {[%emt 0:00:54]} 22. Rb1 {[%emt 0:03:06]} Rxb1+ {[%emt 0:01:00]} 23. Ncxb1 {[%emt 0:00:11]} e5 {[%emt 0:09:50]} 24. Qc3 {[%emt 0:02:22]} Qb4 {[%emt 0:00:20]} 25. a3 {[%emt 0:01:11]} Qxc3 {[%emt 0:08:05]} 26. Nxc3 {[%emt 0:00:09]} Ne8 {[%emt 0:00:07]} 27. h4 {[%emt 0:05:38]} Nc7 {[%emt 0:00:08]} 28. Kf1 {[%emt 0:01:33]} Na8 {[%emt 0:03:46]} 29. Ke2 {[%emt 0:00:12]} Nb6 {[%emt 0:00:05]} 30. Kd3 {[%emt 0:00:14]} Kf8 {[%emt 0:00:39]} 31. Bf3 {[%emt 0:00:41]} Ke7 {[%emt 0:09:32]} 32. Bd1 {[%emt 0:01:19]} f6 {[%emt 0:01:01]} 33. Be2 {[%emt 0:00:58]} Kf7 {[%emt 0:00:28]} 34. Ke3 {[%emt 0:00:33]} Ke7 {[%emt 0:02:14]} 35. f4 {[%emt 0:02:24]} Bc8 {[%emt 0:01:45]} 36. Kf3 {[%emt 0:07:34]} Bd7 {[%emt 0:06:01]} 37. g4 {[%emt 0:04:34]} exf4 {[%emt 0:06:56]} 38. g5 {[%emt 0:02:50]} Be8 {[%emt 0:07:38]} 39. Kxf4 {[%emt 0:01:27]} Nd7 {[%emt 0:02:45]} 40. Nf3 {[%emt 0:02:32]} Ne5 {[%emt 0:06:13]} 41. gxf6+ {[%emt 0:01:26]} Kxf6 {[%emt 0:00:02]} 42. Nxe5 {[%emt 0:00:22]} dxe5+ {[%emt 0:00:01]} 43. Kg3 {[%emt 0:00:17]} Nb7 {[%emt 0:00:47]} 44. Bd3 {[%emt 0:04:37]} Nd6 {[%emt 0:00:18]} 45. Nd1 {[%emt 0:00:22]} h5 {[%emt 0:02:14]} 46. Nb2 {[%emt 0:01:29]} g5 {[%emt 0:04:04]} 47. Kh3 {[%emt 0:01:07]} g4+ {[%emt 0:10:52]} 48. Kh2 {[%emt 0:04:28]} Bg6 {[%emt 0:00:01]} 49. Na4 {[%emt 0:00:14]} Bxe4 {[%emt 0:00:10]} 50. Nxc5 {[%emt 0:00:25]} Bxd3 {[%emt 0:00:08]} 51. Nxd3 {[%emt 0:00:02]} Nxc4 {[%emt 0:00:11]} 52. Nc5 {[%emt 0:00:20]} Kf5 {[%emt 0:04:31]} 53. Nxa6 {[%emt 0:00:19]} Nxa3 {[%emt 0:00:00]} 54. Kg3 {[%emt 0:00:27]} Nc4 {[%emt 0:00:21]} 55. Nc5 $19 {[%emt 0:01:22]} Nd6 {[%emt 0:03:43]} 56. Kg2 {[%emt 0:02:57]} e4 {[%emt 0:00:43]} 57. Ne6 {[%emt 0:00:29]} Ne8 {[%emt 0:00:34]} 58. Kg3 {[%emt 0:06:55]} Ke5 {[%emt 0:00:10]} 59. Nf4 {[%emt 0:00:10]} Nf6 {[%emt 0:00:13]} 60. d6 {[%emt 0:00:30]} Kxd6 {[%emt 0:00:10]} 61. Nxh5 {[%emt 0:00:12]} Nxh5+ {[%emt 0:00:27]} 62. Kxg4 {[%emt 0:00:04]} Ke5 {[%emt 0:01:41]} 63. Kxh5 {[%emt 0:00:41]} e3 {[%emt 0:00:00]} 64. Kg6 {[%emt 0:00:10]} e2 {[%emt 0:00:01]} 65. h5 {[%emt 0:00:09]} e1=Q {[%emt 0:00:03]} 66. h6 {[%emt 0:00:05]} Qg3+ {[%emt 0:00:07]} 67. Kf7 {[%emt 0:00:12]} Qf4+ {[%emt 0:00:16]} 68. Kg7 {[%emt 0:00:02]} Qg5+ {[%emt 0:00:08]} 69. Kh7 {[%emt 0:00:03]} Kf6 {[%emt 0:00:21]} 0-1

[Event "Gibraltar Challengers B 2019"]
[Site "Caleta"]
[Date "2019.01.26"]
[Round "1"]
[White "Nikolaidis, Konstantinos"]
[Black "Skutta, Bernd, Dr."]
[Result "0-1"]
[ECO "A53"]
[WhiteElo "2167"]
[BlackElo "1988"]
[Annotator "NA"]
[PlyCount "84"]
[EventDate "2019.01.18"]
[EventType "swiss"]
[EventCountry "GGB"]
[SourceTitle "playchess.com"]
[Source "ChessBase"]
[SourceQuality "1"]
[TimeControl "6600+10"]

1. e4 {[%emt 0:00:00]} d6 {[%emt 0:05:46]} 2. d4 {[%emt 0:00:19]} Nf6 {[%emt 0:00:11]} 3. f3 {[%emt 0:01:08]} e5 {[%emt 0:02:06]} 4. Ne2 {[%emt 0:01:26]} c6 {[%emt 0:01:33]} 5. c4 {[%emt 0:01:34]} Nbd7 {[%emt 0:01:22] LiveBook: 28 Games} 6. Nbc3 {[%emt 0:02:21]} Be7 {[%emt 0:00:52]} 7. Be3 {[%emt 0:03:02]} O-O {[%emt 0:00:42]} 8. Qd2 {[%emt 0:04:56]} a6 {[%emt 0:04:24]} 9. d5 {[%emt 0:03:27] A53: Old Indian Defence without Nf3} cxd5 {[%emt 0:02:03]} 10. cxd5 {[%emt 0:01:14]} Nh5 {[%emt 0:06:06]} (10... b5 11. g4 Nb6 12. Ng3 {1-0 (87) Papaioannou,I (2630)-Danielsen,H (2494) Rijeka 2010}) 11. O-O-O {[%emt 0:06:10]} b5 $146 {[%emt 0:01:13]} ({Predecessor:} 11... g6 12. g4 Ng7 13. Rg1 b5 14. Kb1 Nb6 15. Nc1 b4 16. N3e2 Nc4 17. Qd3 Nxe3 18. Qxe3 {0-1 (35) Guerra,V (2217)-Galego,L (2424) Oliveira de Azemeis 2001}) 12. g4 {[%emt 0:04:21]} Nhf6 {[%emt 0:02:30]} 13. Ng3 {[%emt 0:01:40]} Nb6 {[%emt 0:02:33]} 14. b3 {[%emt 0:03:01]} b4 {[%emt 0:10:33]} 15. Nce2 {[%emt 0:01:04]} Bxg4 {[%emt 0:00:46]} 16. fxg4 {[%emt 0:02:20]} Nxg4 {[%emt 0:00:37]} 17. Nf5 {[%emt 0:02:37]} Bf6 {[%emt 0:05:00]} 18. Kb1 {[%emt 0:07:21]} Nxe3 {[%emt 0:03:22]} 19. Qxe3 {[%emt 0:01:04]} a5 $18 {[%emt 0:03:59]} 20. Rg1 {[%emt 0:04:17]} Kh8 {[%emt 0:02:44]} 21. Nc1 {[%emt 0:07:09]} a4 {[%emt 0:04:42]} 22. Bb5 {[%emt 0:03:33]} axb3 {[%emt 0:00:59]} 23. axb3 {[%emt 0:07:56]} Ra3 {[%emt 0:01:17]} 24. Rd2 {[%emt 0:02:24]} Qc7 {[%emt 0:09:29]} 25. Ra2 {[%emt 0:03:04]} Rc8 {[%emt 0:03:29]} 26. Rgg2 {[%emt 0:02:19]} Rxa2 {[%emt 0:09:34]} 27. Nxa2 {[%emt 0:02:59]} g6 {[%emt 0:00:57]} 28. Nh6 {[%emt 0:01:01]} Bg7 {[%emt 0:01:23]} 29. Bc6 {[%emt 0:03:27]} Qa7 {[%emt 0:06:18]} 30. Rf2 {[%emt 0:02:10]} Bxh6 {[%emt 0:05:24]} 31. Qxh6 {[%emt 0:01:03]} Nxd5 {[%emt 0:00:16]} 32. Rc2 {[%emt 0:03:52]} Ne3 {[%emt 0:06:19]} 33. Rc1 {[%emt 0:17:32]} Qd4 {[%emt 0:01:15]} 34. Bb7 {[%emt 0:01:43]} Qd3+ {[%emt 0:01:27]} 35. Ka1 {[%emt 0:01:45]} Qd4+ {[%emt 0:01:45]} 36. Kb1 {[%emt 0:00:10]} Qd3+ {[%emt 0:00:46]} 37. Ka1 {[%emt 0:00:23]} Qd4+ {[%emt 0:02:01]} 38. Kb1 {[%emt 0:01:10]} Qd3+ {[%emt 0:00:05]} 39. Ka1 {[%emt 0:00:01]} Rxc1+ 40. Nxc1 Qc3+ {[%emt 0:00:01]} 41. Kb1 {[%emt 0:00:04]} Qc2+ {[%emt 0:00:02]} 42. Ka1 {[%emt 0:00:02]} Qxc1+ 0-1

[Event "Gibraltar Challengers B 2019"]
[Site "Caleta"]
[Date "2019.01.26"]
[Round "1"]
[White "Orndahl, Mats"]
[Black "Adewole, Adeyinka"]
[Result "1/2-1/2"]
[ECO "A47"]
[WhiteElo "2160"]
[BlackElo "1972"]
[Annotator "NA"]
[PlyCount "87"]
[EventDate "2019.01.18"]
[EventType "swiss"]
[EventCountry "GGB"]
[SourceTitle "playchess.com"]
[Source "ChessBase"]
[SourceQuality "1"]
[TimeControl "6600+10"]

1. d4 {[%emt 0:02:49]} e6 {[%emt 0:19:56]} 2. Bf4 {[%emt 0:02:11]} Nf6 {[%emt 0:01:02]} 3. e3 {[%emt 0:00:19]} c5 {[%emt 0:00:31]} 4. c3 {[%emt 0:00:15]} b6 {[%emt 0:00:28]} 5. Nd2 {[%emt 0:01:39]} Bb7 {[%emt 0:00:45]} 6. Ngf3 {[%emt 0:01:37]} a6 {[%emt 0:00:39] A47: 1 d4 Nf6 2 Nf3 b6: Torre, London and Colle Systems} (6... Be7 7. h3 O-O 8. Bd3 d6 9. O-O Nc6 10. Bh2 Re8 11. a3 Bf8 12. Qe2 g6 13. Rfd1 a6 14. e4 d5 15. e5 Nd7 16. Bf4 b5 17. Qe3 Rc8 {0-1 (48) Grachev,B (2645)-Fedoseev,V (2733) Sochi 2017}) 7. a4 {[%emt 0:01:11]} d5 {[%emt 0:00:12]} 8. Ne5 $146 {[%emt 0:01:40]} ({Predecessor:} 8. h3 Nc6 9. Be2 Bd6 10. Bxd6 Qxd6 11. a5 cxd4 12. exd4 Nxa5 13. b4 Nc4 14. Nxc4 dxc4 15. Bxc4 {0-1 (31) Spacek,O (2184)-Polacik,I (2121) Slovakia 2015}) 8... Nc6 {[%emt 0:00:45]} 9. Bd3 {[%emt 0:00:58]} c4 {[%emt 0:01:34]} 10. Bb1 {[%emt 0:03:16]} b5 {[%emt 0:00:14]} 11. axb5 {[%emt 0:05:15]} axb5 {[%emt 0:00:17]} 12. Rxa8 {[%emt 0:00:13]} Qxa8 {[%emt 0:00:05]} 13. O-O {[%emt 0:00:22]} Qa5 {[%emt 0:00:34]} 14. Qf3 {[%emt 0:01:30]} Nxe5 {[%emt 0:00:54]} 15. Bxe5 {[%emt 0:06:53]} Nd7 {[%emt 0:01:04]} 16. Bg3 {[%emt 0:09:02]} f5 {[%emt 0:02:00]} 17. Qh5+ {[%emt 0:13:32]} g6 {[%emt 0:01:20]} 18. Qe2 {[%emt 0:01:09]} b4 {[%emt 0:01:07]} 19. cxb4 {[%emt 0:03:50]} Bxb4 {[%emt 0:00:02]} 20. Nf3 {[%emt 0:01:01]} h6 {[%emt 0:01:01]} 21. Ne5 {[%emt 0:06:46]} Rg8 {[%emt 0:02:17]} 22. f3 {[%emt 0:07:22]} Nxe5 {[%emt 0:03:16]} 23. Bxe5 {[%emt 0:00:20]} Ba6 {[%emt 0:00:04]} 24. Rd1 {[%emt 0:04:41]} Kd7 {[%emt 0:01:18]} 25. e4 {[%emt 0:00:56]} dxe4 {[%emt 0:06:10]} 26. fxe4 {[%emt 0:01:19]} c3 {[%emt 0:00:47]} 27. Qf2 {[%emt 0:07:39]} cxb2 {[%emt 0:05:53]} 28. Qxb2 {[%emt 0:01:59]} Qa3 {[%emt 0:00:49]} 29. Qf2 {[%emt 0:00:57]} Bb7 {[%emt 0:00:14]} 30. Kh1 {[%emt 0:01:20]} Rc8 {[%emt 0:01:13]} 31. Bd3 {[%emt 0:12:59]} Rc1 {[%emt 0:06:05]} 32. Qf1 {[%emt 0:02:27]} Rxd1 {[%emt 0:01:28]} 33. Qxd1 {[%emt 0:00:04]} Bxe4 {[%emt 0:00:19]} 34. Bxe4 {[%emt 0:02:18]} fxe4 $11 {[%emt 0:00:19]} 35. h3 {[%emt 0:00:35]} Bd6 {[%emt 0:00:55]} 36. Qb1 {[%emt 0:01:58]} Bxe5 {[%emt 0:02:26]} 37. Qb5+ {[%emt 0:00:37]} Ke7 {[%emt 0:01:46]} 38. Qxe5 {[%emt 0:00:27]} Qd3 {[%emt 0:00:24]} 39. Qc7+ {[%emt 0:00:43]} Kf6 {[%emt 0:00:53]} 40. Qe5+ {[%emt 0:00:10]} Kf7 {[%emt 0:01:41]} 41. Qc7+ {[%emt 0:00:22]} Ke8 {[%emt 0:00:16]} 42. Qc8+ {[%emt 0:00:16]} Kf7 {[%emt 0:00:36]} 43. Qc7+ {[%emt 0:00:06]} Kf8 {[%emt 0:01:41]} 44. Qc8+ {[%emt 0:00:10]} 1/2-1/2

[Event "Gibraltar Challengers B 2019"]
[Site "Caleta"]
[Date "2019.01.26"]
[Round "1"]
[White "Jordan Martinez, Miguel"]
[Black "Lutz, Juergen"]
[Result "1-0"]
[ECO "B41"]
[WhiteElo "2142"]
[BlackElo "1960"]
[Annotator "NA"]
[PlyCount "56"]
[EventDate "2019.01.18"]
[EventType "swiss"]
[EventCountry "GGB"]
[SourceTitle "playchess.com"]
[Source "ChessBase"]
[SourceQuality "1"]
[TimeControl "6600+10"]

1. e4 {[%emt 0:00:00]} c5 {[%emt 0:00:00]} 2. Nf3 {[%emt 0:00:00]} Nc6 {[%emt 0:00:00]} 3. c4 {[%emt 0:00:04]} e6 {[%emt 0:01:10]} 4. Nc3 {[%emt 0:00:06]} a6 {[%emt 0:00:03]} 5. Be2 {[%emt 0:00:21]} (5. d4 $14) 5... Nf6 {[%emt 0:00:22]} 6. O-O {[%emt 0:00:14]} Be7 {[%emt 0:00:27]} 7. d4 {[%emt 0:00:22]} cxd4 {[%emt 0:00:35]} 8. Nxd4 {[%emt 0:00:02]} Qc7 {[%emt 0:01:22]} 9. Be3 {[%emt 0:00:56]} O-O {[%emt 0:00:45]} 10. Rc1 {[%emt 0:01:32] LiveBook: 8 Games B41: Sicilian: Kan Variation: 5 c4} Re8 {[%emt 0:22:44]} 11. h3 $146 {[%emt 0:06:01]} ({Predecessor:} 11. Qd2 d6 12. Rfd1 Bd7 13. f3 Rad8 14. Nd5 exd5 15. cxd5 Qb8 16. dxc6 bxc6 17. Rxc6 d5 18. e5 Bb4 19. Qc1 Qxe5 20. Bf4 Qxd4+ 21. Rxd4 Rxe2 22. Rxb4 Bxc6 23. Qxc6 {1-0 (23) Bistric,F (2488)-Tayeb,S (2240) Abu Dhabi 2004}) 11... d6 {[%emt 0:02:29]} 12. a3 {[%emt 0:03:43]} Bd7 {[%emt 0:08:40]} 13. b4 {[%emt 0:03:05]} Rad8 {[%emt 0:00:32]} 14. f4 {[%emt 0:02:11]} Qb8 {[%emt 0:10:26]} 15. Bf3 {[%emt 0:04:48]} Bf8 {[%emt 0:13:27]} 16. Nb3 {[%emt 0:09:02]} b5 {[%emt 0:03:52]} 17. cxb5 {[%emt 0:08:04]} axb5 {[%emt 0:00:01]} 18. Qe2 {[%emt 0:00:10]} d5 {[%emt 0:17:56]} 19. e5 {[%emt 0:01:50]} Nxe5 {[%emt 0:07:53]} 20. fxe5 {[%emt 0:00:40]} Qxe5 {[%emt 0:00:01]} 21. Bc5 {[%emt 0:05:12]} Bxc5+ $18 {[%emt 0:01:29]} 22. Nxc5 {[%emt 0:00:29]} Qd4+ {[%emt 0:00:03]} 23. Kh1 {[%emt 0:02:29]} e5 {[%emt 0:04:36]} 24. Rfd1 {[%emt 0:02:44]} Qh4 {[%emt 0:00:41]} 25. Nxd7 {[%emt 0:00:37]} Rxd7 {[%emt 0:00:19]} 26. Nxd5 {[%emt 0:00:40]} Rxd5 {[%emt 0:01:00]} 27. Bxd5 {[%emt 0:03:06]} Nh5 {[%emt 0:00:50]} 28. Qg4 {[%emt 0:00:49]} Qd8 {[%emt 0:02:21]} 1-0

[Event "Gibraltar Challengers B 2019"]
[Site "Caleta"]
[Date "2019.01.26"]
[Round "1"]
[White "Kandic, Milan"]
[Black "James, Kevin"]
[Result "1-0"]
[ECO "B06"]
[WhiteElo "2136"]
[BlackElo "1948"]
[Annotator "NA"]
[PlyCount "79"]
[EventDate "2019.01.18"]
[EventType "swiss"]
[EventCountry "GGB"]
[SourceTitle "playchess.com"]
[Source "ChessBase"]
[SourceQuality "1"]
[TimeControl "6600+10"]

1. Nf3 {[%emt 0:00:00]} g6 {[%emt 0:00:14]} 2. e4 {[%emt 0:00:00]} Bg7 {[%emt 0:00:15]} 3. d4 {[%emt 0:00:11]} d6 {[%emt 0:00:49]} 4. Nc3 {[%emt 0:00:46]} Nd7 {[%emt 0:00:35]} 5. Bc4 {[%emt 0:04:42]} c6 {[%emt 0:17:45]} 6. O-O {[%emt 0:02:55] B06: Modern Defence} Nb6 {[%emt 0:01:14]} 7. Bb3 {[%emt 0:00:30]} Nf6 {[%emt 0:00:17]} 8. a4 {[%emt 0:03:55]} a5 {[%emt 0:00:00]} 9. h3 {[%emt 0:01:26]} O-O {[%emt 0:00:00]} 10. Be3 {[%emt 0:10:10]} d5 {[%emt 0:02:52]} 11. e5 {[%emt 0:00:19]} Ne8 {[%emt 0:01:48]} 12. Qc1 {[%emt 0:01:42]} Nc7 {[%emt 0:00:49]} 13. Bh6 {[%emt 0:01:23]} Nc4 $146 {[%emt 0:00:30]} ({Predecessor:} 13... Ne6 14. Ne2 {0-1 (38) Feuerstein,A (2365)-Biyiasas,P (2435) New York 1977}) 14. Bxg7 {[%emt 0:00:30]} Kxg7 {[%emt 0:02:44]} 15. Ne2 {[%emt 0:13:41]} b5 {[%emt 0:11:47]} 16. c3 {[%emt 0:00:00]} Ba6 {[%emt 0:06:36]} 17. Re1 {[%emt 0:00:00]} Rb8 {[%emt 0:04:37]} 18. axb5 {[%emt 0:00:00]} Rxb5 {[%emt 0:00:00]} 19. Bxc4 {[%emt 0:00:55]} dxc4 {[%emt 0:00:25]} 20. Nd2 {[%emt 0:06:41]} Ne6 {[%emt 0:02:15]} 21. Nxc4 {[%emt 0:00:45]} c5 {[%emt 0:19:03]} 22. Qd2 {[%emt 0:00:57]} Bb7 {[%emt 0:07:49]} 23. Na3 {[%emt 0:02:50]} Rb3 {[%emt 0:20:35]} 24. Qc2 {[%emt 0:09:00]} Qd5 {[%emt 0:00:00]} 25. f3 {[%emt 0:00:28]} c4 {[%emt 0:05:14]} 26. Rf1 {[%emt 0:01:24]} f6 {[%emt 0:02:43]} 27. exf6+ {[%emt 0:33:58]} Rxf6 {[%emt 0:00:45]} 28. Qd2 {[%emt 0:01:52]} Rb6 {[%emt 0:02:24]} 29. Rab1 {[%emt 0:00:13]} g5 {[%emt 0:02:33]} 30. Nc2 {[%emt 0:08:34]} Qb5 {[%emt 0:00:23]} 31. Ne3 {[%emt 0:00:00]} h5 {[%emt 0:02:16]} 32. Ng3 {[%emt 0:07:38]} Nf4 {[%emt 0:00:00]} 33. Ne4 {[%emt 0:00:00]} Bxe4 {[%emt 0:00:00]} 34. fxe4 {[%emt 0:00:29]} a4 {[%emt 0:02:27]} 35. Nf5+ {[%emt 0:00:00]} Kf7 {[%emt 0:01:06]} 36. h4 {[%emt 0:09:01]} e5 {[%emt 0:00:00]} 37. hxg5 {[%emt 0:00:27]} Rxf5 {[%emt 0:00:00]} 38. exf5 {[%emt 0:00:00]} Qd5 {[%emt 0:00:00]} 39. Rxf4 {[%emt 0:00:00]} exf4 {[%emt 0:00:00]} 40. Qxf4 $18 {[%emt 0:00:00]} 1-0

[Event "Gibraltar Challengers B 2019"]
[Site "Caleta"]
[Date "2019.01.26"]
[Round "1"]
[White "Berrocal Ruiz, Valentin"]
[Black "Gillis Onieva, Celia"]
[Result "1-0"]
[ECO "D04"]
[WhiteElo "2127"]
[BlackElo "1930"]
[Annotator "NA"]
[PlyCount "75"]
[EventDate "2019.01.18"]
[EventType "swiss"]
[EventCountry "GGB"]
[SourceTitle "playchess.com"]
[Source "ChessBase"]
[SourceQuality "1"]
[TimeControl "6600+10"]

1. d4 {[%emt 0:00:00]} Nf6 {[%emt 0:00:44]} 2. Nf3 {[%emt 0:00:13]} c5 {[%emt 0:00:50]} 3. e3 {[%emt 0:00:52]} d5 {[%emt 0:02:39]} 4. Bd3 {[%emt 0:01:47]} Nc6 {[%emt 0:00:42]} 5. O-O {[%emt 0:00:16]} Bg4 {[%emt 0:02:49]} 6. c3 {[%emt 0:00:55]} e6 {[%emt 0:02:11]} 7. Nbd2 $11 {[%emt 0:01:00] LiveBook: 24 Games} Bd6 {[%emt 0:03:01]} 8. dxc5 {[%emt 0:08:50]} Bxc5 {[%emt 0:03:53]} 9. e4 {[%emt 0:00:51]} O-O {[%emt 0:16:39]} 10. Qc2 {[%emt 0:09:38]} Qc7 {[%emt 0:11:12]} 11. h3 {[%emt 0:12:41]} Bh5 {[%emt 0:01:43]} 12. exd5 {[%emt 0:09:47]} exd5 {[%emt 0:03:48]} 13. Nb3 {[%emt 0:04:42]} Bb6 {[%emt 0:06:50]} 14. Nfd4 {[%emt 0:06:37]} Rac8 {[%emt 0:09:24]} 15. Be3 {[%emt 0:03:52]} Rfe8 {[%emt 0:09:48]} 16. Nb5 {[%emt 0:06:28]} Qd8 {[%emt 0:11:56]} 17. Bxb6 {[%emt 0:02:43]} axb6 {[%emt 0:00:07]} 18. Bf5 {[%emt 0:03:10]} Ra8 {[%emt 0:17:55]} 19. N3d4 {[%emt 0:02:27]} Ne7 {[%emt 0:03:06]} 20. a3 {[%emt 0:06:14]} Nxf5 {[%emt 0:01:03]} 21. Qxf5 {[%emt 0:00:23]} Bg6 {[%emt 0:01:13]} 22. Qf4 {[%emt 0:03:28]} Re4 {[%emt 0:00:36]} 23. Qd6 {[%emt 0:00:28]} h6 {[%emt 0:01:06]} 24. Qxd8+ {[%emt 0:00:28]} Rxd8 {[%emt 0:00:04]} 25. f3 {[%emt 0:00:50]} Re7 {[%emt 0:00:10]} 26. Rfe1 {[%emt 0:00:35]} Rde8 {[%emt 0:00:05]} 27. Kf2 {[%emt 0:01:12]} Nd7 {[%emt 0:00:09]} 28. Nc7 {[%emt 0:01:19]} Rxe1 {[%emt 0:00:03]} 29. Rxe1 {[%emt 0:00:08]} Rxe1 {[%emt 0:00:03]} 30. Kxe1 {[%emt 0:00:13]} Nc5 {[%emt 0:00:31]} 31. Kd2 {[%emt 0:08:31]} Nd3 {[%emt 0:00:22]} 32. b3 {[%emt 0:00:08]} Nf4 {[%emt 0:00:03]} 33. g3 {[%emt 0:00:12]} Nxh3 {[%emt 0:00:21]} 34. Nxd5 {[%emt 0:00:31]} Ng5 {[%emt 0:00:19]} 35. Nxb6 {[%emt 0:00:21]} Kf8 {[%emt 0:00:01]} 36. Nc8 {[%emt 0:01:27]} Ke8 {[%emt 0:00:23]} 37. Nd6+ {[%emt 0:00:08]} Kd7 {[%emt 0:00:08]} 38. Nxb7 {[%emt 0:00:11]} 1-0

[Event "Gibraltar Challengers B 2019"]
[Site "Caleta"]
[Date "2019.01.26"]
[Round "1"]
[White "Alarcon Olmos, Daniel"]
[Black "Nandi, Robin J"]
[Result "1-0"]
[ECO "C77"]
[WhiteElo "2124"]
[BlackElo "1903"]
[Annotator "NA"]
[PlyCount "113"]
[EventDate "2019.01.18"]
[EventType "swiss"]
[EventCountry "GGB"]
[SourceTitle "playchess.com"]
[Source "ChessBase"]
[SourceQuality "1"]
[TimeControl "6600+10"]

1. e4 {[%emt 0:00:00]} e5 {[%emt 0:01:56]} 2. Nf3 {[%emt 0:00:00]} Nc6 {[%emt 0:00:12]} 3. Bb5 {[%emt 0:00:00]} a6 {[%emt 0:00:07]} 4. Ba4 {[%emt 0:00:00]} Nf6 {[%emt 0:00:10]} 5. Qe2 {[%emt 0:00:37]} b5 {[%emt 0:03:02]} 6. Bb3 {[%emt 0:00:04]} Be7 {[%emt 0:00:31]} 7. a4 {[%emt 0:00:23]} Rb8 {[%emt 0:02:07]} 8. axb5 {[%emt 0:00:29]} axb5 {[%emt 0:00:09]} 9. d4 {[%emt 0:01:14] C77: Ruy Lopez: 3...a6 4 Ba4 Nf6, unusual lines} (9. c3 d6 10. d4 exd4 11. Nxd4 Bd7 12. Nxb5 Ne5 13. Ba4 O-O 14. Nd2 d5 15. exd5 Bxb5 16. Qxe5 Bd6 {0-1 (61) Tiviakov,S (2604)-Brunello,S (2552) Trieste 2018}) 9... d6 {[%emt 0:11:50]} 10. d5 {[%emt 0:00:23]} Nb4 {[%emt 0:00:28]} 11. c3 $146 {[%emt 0:02:42]} ({Predecessor:} 11. Nc3 O-O 12. O-O Na6 13. Nxb5 Nc5 14. Nd2 Bd7 15. Nc3 g6 16. Bc4 Nh5 {0-1 (39) Amin,B (2281)-Haddouche,M (2173) Ajelat 2003}) 11... Na6 {[%emt 0:00:16]} 12. Bc2 {[%emt 0:00:28]} O-O {[%emt 0:02:12]} 13. b4 {[%emt 0:01:19]} c5 {[%emt 0:01:32]} 14. Ba3 {[%emt 0:02:15]} cxb4 {[%emt 0:03:56]} 15. cxb4 {[%emt 0:02:26]} Qc7 {[%emt 0:04:16]} ({Black should play} 15... Ra8 $17 16. Bb2 Bg4) 16. O-O {[%emt 0:00:49]} Bd7 {[%emt 0:00:32]} 17. Rc1 {[%emt 0:00:12]} Rfc8 {[%emt 0:06:58]} 18. Nbd2 {[%emt 0:00:17]} Qb6 {[%emt 0:04:23]} 19. Nb3 {[%emt 0:01:24]} Rc7 {[%emt 0:06:32]} 20. Bd3 {[%emt 0:04:24]} Rbc8 {[%emt 0:03:02]} 21. h3 {[%emt 0:04:57]} Nh5 {[%emt 0:01:45]} 22. Qd2 {[%emt 0:00:12]} Nf4 {[%emt 0:01:36]} 23. Rxc7 {[%emt 0:02:37]} Rxc7 {[%emt 0:00:52]} 24. Rc1 {[%emt 0:00:04]} g6 {[%emt 0:11:01]} 25. Bb1 {[%emt 0:02:31]} Kg7 {[%emt 0:03:34]} 26. Bb2 {[%emt 0:01:34]} Bf6 {[%emt 0:02:07]} 27. Rxc7 {[%emt 0:00:30]} Qxc7 {[%emt 0:00:21]} 28. Na5 {[%emt 0:00:10]} Kg8 {[%emt 0:03:03]} 29. Kh2 {[%emt 0:09:08]} Bd8 {[%emt 0:01:37]} 30. Ng1 $19 {[%emt 0:01:42]} (30. h4 $11) 30... Qc8 {[%emt 0:04:08]} 31. Qc3 {[%emt 0:08:56]} Qxc3 {[%emt 0:09:22]} 32. Bxc3 {[%emt 0:00:02]} Bb6 {[%emt 0:00:36]} 33. g3 {[%emt 0:00:16]} Nh5 {[%emt 0:00:29]} 34. Kg2 {[%emt 0:00:02]} Kf8 {[%emt 0:00:50]} 35. Bd3 {[%emt 0:05:00]} Ke7 {[%emt 0:03:14]} 36. Nc6+ {[%emt 0:04:44]} Bxc6 {[%emt 0:00:25]} 37. dxc6 {[%emt 0:00:02]} Nc7 {[%emt 0:00:23]} 38. Ne2 {[%emt 0:00:17]} f5 {[%emt 0:01:56]} 39. exf5 {[%emt 0:00:48]} gxf5 {[%emt 0:04:07]} 40. Bxf5 {[%emt 0:00:24]} Nf6 {[%emt 0:01:02]} 41. h4 {[%emt 0:00:34]} Ne6 {[%emt 0:00:59]} 42. g4 {[%emt 0:02:36]} Nd8 {[%emt 0:02:24]} 43. g5 {[%emt 0:01:41]} Nd5 {[%emt 0:00:10]} 44. Bd2 {[%emt 0:00:27]} Nxc6 {[%emt 0:00:27]} 45. Bxh7 {[%emt 0:00:15]} Ncxb4 {[%emt 0:00:29]} 46. g6 {[%emt 0:00:34]} Kf6 {[%emt 0:00:59]} 47. Bg5+ {[%emt 0:00:32]} Kg7 {[%emt 0:00:19]} 48. h5 {[%emt 0:00:03]} Nd3 {[%emt 0:00:49]} 49. h6+ {[%emt 0:01:15]} Kh8 {[%emt 0:00:08]} 50. Nc3 {[%emt 0:00:32]} N3f4+ {[%emt 0:01:44]} 51. Kf3 {[%emt 0:00:11]} Ne6 {[%emt 0:01:37]} 52. Nxd5 {[%emt 0:00:30]} Nxg5+ {[%emt 0:00:04]} 53. Kg4 {[%emt 0:00:02]} Nxh7 {[%emt 0:00:29]} 54. g7+ {[%emt 0:00:05]} Kg8 {[%emt 0:00:10]} 55. Ne7+ {[%emt 0:00:01]} Kf7 {[%emt 0:00:04]} 56. g8=Q+ {[%emt 0:00:03]} Kxe7 {[%emt 0:00:09]} 57. Qxh7+ {[%emt 0:00:01] Bd8 [%emt 00:00:12]} 1-0